bitfinex-derivatives/quotes_ETHF0:USTF0_20250416
["timestamp","ask_amount","ask_price","bid_price","bid_amount"]
[1744791048546,1.28116,1561.2,1561.1,4.819]
[1744791048746,7.27256,1561.2,1561.1,45.619]
[1744791049145,7.27256,1561.2,1561.1,46.90025]
[1744791049347,7.27256,1561.2,1561.1,6.10025]
[1744791049737,4.06476,1561.2,1561.1,6.10025]
[1744791050042,7.27256,1561.2,1561.1,4.819]
[1744791050545,1.28125,1561.1,1561.0,0.00961692]
[1744791050738,1.28149,1560.8,1560.7,94.2938]
[1744791051252,6.28149,1560.8,1560.7,0.6408]
[1744791051454,2.8059,1560.8,1560.7,1.92237]
[1744791051653,1.1817,1560.9,1560.8,1.28149]
[1744791051947,2.46311,1560.9,1560.8,6.10049]
[1744791052346,2.46311,1560.9,1560.8,4.819]
[1744791052550,1.1817,1560.9,1560.8,6.10049]
[1744791052751,2.46311,1560.9,1560.8,6.10049]
[1744791052948,2.46311,1560.9,1560.8,4.819]
[1744791053354,2.46311,1560.9,1560.8,6.10049]
[1744791054254,7.46311,1560.9,1560.8,6.10049]
[1744791054454,2.46311,1560.9,1560.8,6.10049]
[1744791054857,2.46311,1560.9,1560.8,4.819]
[1744791055055,4.3895,1560.9,1560.8,6.10049]
[1744791055258,5.67091,1560.9,1560.8,6.10049]
[1744791055551,7.28471,1560.9,1560.8,6.10049]
[1744791055758,7.28471,1560.9,1560.8,4.819]
[1744791056858,7.28471,1560.9,1560.8,6.10049]
[1744791059659,6.0033,1560.9,1560.8,6.10049]
[1744791060862,6.0033,1560.9,1560.8,7.79719]
[1744791061056,3.2078,1560.9,1560.8,12.79719]
[1744791062062,1.6342,1561.0,1560.9,1.28141]
[1744791062763,8.80014195,1561.2,1561.0,1.28125]
[1744791062764,7.51894195,1561.2,1561.0,1.28125]
[1744791062971,2.93255,1561.1,1561.0,1.28133]
[1744791063263,1.6513,1561.1,1561.0,6.10033]
[1744791064362,7.51894195,1561.2,1561.1,1.28125]
[1744791064562,6.33784195,1561.2,1561.1,2.92595]
[1744791065064,1.16801692,1561.4,1561.1,9.84774]
[1744791065263,1.16801692,1561.4,1561.3,1.28108]
[1744791065466,6.92e-06,1561.4,1561.3,11.03408]
[1744791065661,6.92e-06,1561.4,1561.3,13.03608]
[1744791065962,6.92e-06,1561.4,1561.3,54.3465011]
[1744791066266,8.44965593,1561.7,1561.6,1.28084]
[1744791066454,10.56126475,1561.8,1561.7,1.28075]
[1744791066654,10.56126475,1561.8,1561.7,2.95905]
[1744791066855,10.56126475,1561.8,1561.7,48.51205]
[1744791069263,10.56126475,1561.8,1561.7,53.51205]
[1744791070065,10.56126475,1561.8,1561.7,43.75905]
[1744791070364,1.7326,1561.8,1561.7,46.83275]
[1744791070867,1.23101692,1561.9,1561.8,1.28067]
[1744791071369,1.23101692,1561.9,1561.8,3.02277]
[1744791071559,2.83271692,1561.9,1561.8,3.02277]
[1744791072361,12.32116692,1561.9,1561.7,40.8]
[1744791072561,5.71946692,1561.9,1561.8,6.03167]
[1744791072758,2.51166692,1561.9,1561.8,6.03167]
[1744791075170,7.51166692,1561.9,1561.8,4.751]
[1744791075970,1.23101692,1561.9,1561.8,6.03167]
[1744791076565,1.23101692,1561.9,1561.8,7.71847]
[1744791076966,0.00961692,1561.9,1561.8,7.71847]
[1744791077875,1.29020692,1561.9,1561.8,1.28067]
[1744791078672,4.49800692,1561.9,1561.8,1.28067]
[1744791078970,1.28067,1561.8,1561.7,48.4387]
[1744791079165,2.47707,1561.8,1561.7,45.551]
[1744791079568,2.47707,1561.8,1561.7,4.751]
[1744791080374,2.47707,1561.8,1561.7,6.03175]
[1744791081876,2.47707,1561.8,1561.7,4.751]
[1744791083776,2.47707,1561.8,1561.7,6.03175]
[1744791083975,2.47707,1561.8,1561.7,4.751]
[1744791084174,1.1964,1561.8,1561.7,4.751]
[1744791084378,0.00961692,1561.9,1561.8,1.28067]
[1744791084670,0.00961692,1561.9,1561.8,2.89187]
[1744791084875,0.00961692,1561.9,1561.8,49.93757]
[1744791085774,1.29020692,1561.9,1561.8,45.551]
[1744791086076,1.29020692,1561.9,1561.8,46.83167]
[1744791086279,0.00961692,1561.9,1561.8,46.83167]
[1744791087569,0.00961692,1561.9,1561.8,51.83167]
[1744791087877,0.00961692,1561.9,1561.8,55.03947]
[1744791090380,0.00961692,1561.9,1561.8,50.03947]
[1744791092884,6.92e-06,1561.9,1561.8,55.03947]
[1744791094182,6.92e-06,1561.9,1561.8,50.03947]
[1744791094483,6.92e-06,1561.9,1561.8,55.03947]
[1744791094883,6.92e-06,1561.9,1561.8,50.03947]
[1744791095084,6.92e-06,1561.9,1561.8,50.03847]
[1744791095484,6.92e-06,1561.9,1561.8,50.05347]
[1744791095882,6.92e-06,1561.9,1561.8,45.28847]
[1744791096488,6.92e-06,1561.9,1561.8,50.05347]
[1744791096685,6.92e-06,1561.9,1561.8,45.28847]
[1744791096881,6.92e-06,1561.9,1561.8,50.05347]
[1744791097182,6.92e-06,1561.9,1561.8,45.28847]
[1744791097584,6.92e-06,1561.9,1561.8,50.05347]
[1744791098082,6.92e-06,1561.9,1561.8,50.05247]
[1744791098284,2.91800692,1561.9,1561.8,50.05247]
[1744791099187,2.91800692,1561.9,1561.8,45.28847]
[1744791099387,2.91800692,1561.9,1561.8,46.84467]
[1744791102089,2.91800692,1561.9,1561.8,42.08067]
[1744791102390,2.91800692,1561.9,1561.8,46.84567]
[1744791102593,2.91800692,1561.9,1561.8,48.51477]
[1744791104490,2.91800692,1561.9,1561.8,46.84567]
[1744791104990,4.19859692,1561.9,1561.8,42.08067]
[1744791105184,9.19859692,1561.9,1561.8,46.84567]
[1744791105886,9.19859692,1561.9,1561.7,3.20189]
[1744791105887,1.28075,1561.7,1561.6,0.00961692]
[1744791106186,1.28075,1561.7,1561.5,4.765]
[1744791106187,1.28084,1561.6,1561.5,2.9155]
[1744791106388,4.22484,1561.6,1561.5,2.9155]
[1744791106692,4.22484,1561.6,1561.3,6.04608]
[1744791106693,1.281,1561.4,1561.3,6.04608]
[1744791106883,14.34839,1561.6,1561.4,1.281]
[1744791106884,3.01029,1561.5,1561.4,1.281]
[1744791107193,1.281,1561.4,1561.3,6.05564692]
[1744791107386,3.0103,1561.4,1561.3,6.05564692]
[1744791107584,1.7293,1561.4,1561.3,6.05564692]
[1744791107793,1.7293,1561.4,1561.3,46.85564692]
[1744791108085,3.0103,1561.4,1561.3,46.85564692]
[1744791109093,1.7293,1561.4,1561.3,46.85564692]
[1744791109292,4.4168,1561.6,1561.5,1.28092]
[1744791109293,1.2147,1561.6,1561.5,1.28092]
[1744791109493,1.6172,1561.6,1561.5,1.28092]
[1744791110085,1.6172,1561.6,1561.5,2.96832]
[1744791110292,4.22133229,1561.7,1561.6,1.28084]
[1744791110482,4.22133229,1561.7,1561.6,6.04684]
[1744791110793,4.22133229,1561.7,1561.6,9.25464]
[1744791111193,4.22133229,1561.7,1561.6,10.44874]
[1744791111382,4.22133229,1561.7,1561.6,7.24094]
[1744791111587,4.22133229,1561.7,1561.5,1.28085]
[1744791111588,1.28088,1561.6,1561.5,1.28085]
[1744791111881,5.47378,1561.6,1561.5,1.28085]
[1744791112189,5.47378,1561.6,1561.4,6.04697]
[1744791112190,1.28092,1561.5,1561.4,6.04697]
[1744791112490,3.03762,1561.5,1561.4,6.047]
[1744791112681,6.24542,1561.5,1561.4,4.766]
[1744791112882,6.24542,1561.5,1561.4,6.047]
[1744791113086,3.03762,1561.5,1561.4,6.047]
[1744791113290,6.24542,1561.5,1561.4,6.047]
[1744791113592,1.7567,1561.5,1561.4,6.047]
[1744791114384,3.03762,1561.5,1561.4,6.047]
[1744791115296,1.7567,1561.5,1561.4,6.047]
[1744791117096,8.70978921,1561.9,1561.8,1.28067]
[1744791117296,4.48845692,1561.9,1561.8,1.28067]
[1744791117793,6.20235692,1561.9,1561.8,1.28067]
[1744791119085,1.28067,1561.8,1561.7,6.04667]
[1744791119396,2.99457,1561.8,1561.7,6.04667]
[1744791119897,1.28084,1561.6,1561.5,6.04687]
[1744791120290,4.0008,1561.6,1561.5,6.04687]
[1744791120593,5.28164,1561.6,1561.5,4.766]
[1744791122093,5.28164,1561.6,1561.5,6.04692]
[1744791122288,5.28164,1561.6,1561.3,0.00961692]
[1744791122487,1.281,1561.4,1561.3,0.00961692]
[1744791122897,1.28133,1561.0,1560.9,8.50266721]
[1744791123195,4.48913,1561.0,1560.9,1.41628413]
[1744791123396,9.48913,1561.0,1560.9,1.41628413]
[1744791123585,1.28141,1560.9,1560.8,12.75400082]
[1744791123786,2.92671,1560.9,1560.8,12.75400082]
[1744791123994,7.92671,1560.9,1560.8,12.75400082]
[1744791124502,7.92671,1560.9,1560.8,6.37980082]
[1744791124795,12.69271,1560.9,1560.8,4.74410082]
[1744791125589,1.28149,1560.8,1560.7,0.00961692]
[1744791125795,4.48929,1560.8,1560.7,0.00961692]
[1744791126099,3.2078,1560.8,1560.7,1.29118692]
[1744791126293,0.00961692,1561.0,1560.9,1.28141]
[1744791126501,0.00961692,1561.0,1560.9,6.00541]
[1744791129904,1.29094692,1561.0,1560.9,6.00541]
[1744791130202,1.29094692,1561.0,1560.9,4.724]
[1744791130394,4.49874692,1561.0,1560.9,4.724]
[1744791130591,1.29094692,1561.0,1560.9,4.724]
[1744791130797,4.49874692,1561.0,1560.9,4.724]
[1744791130998,4.49874692,1561.0,1560.9,6.3666]
[1744791131805,1.28149,1560.8,1560.7,0.00961692]
[1744791132002,4.48929,1560.8,1560.7,0.00961692]
[1744791132403,11.09189,1560.8,1560.7,0.00961692]
[1744791132804,6.09189,1560.8,1560.7,0.00961692]
[1744791132997,3.21741692,1561.0,1560.7,4.73461692]
[1744791133193,1.28143,1560.9,1560.8,1.6645]
[1744791133397,1.28143,1560.9,1560.8,2.8155]
[1744791133805,2.88403,1560.9,1560.8,2.8155]
[1744791133997,1.28149,1560.8,1560.7,4.73461692]
[1744791134204,6.09189,1560.8,1560.7,4.73461692]
[1744791134403,6.09189,1560.8,1560.7,6.39911692]
[1744791135110,6.09189,1560.8,1560.7,7.68068692]
[1744791135308,4.49876692,1561.0,1560.9,1.28141]
[1744791135607,1.28141,1560.9,1560.8,1.722]
[1744791136506,0.00961692,1561.0,1560.9,1.28141]
[1744791136805,4.21188659,1561.5,1561.4,1.281]
[1744791137199,1.281,1561.4,1561.3,8.93265]
[1744791137510,1.281,1561.4,1561.3,48.01065]
[1744791137701,5.49288659,1561.4,1561.3,48.01065]
[1744791139212,8.70068659,1561.4,1561.3,48.01065]
[1744791139413,5.49288659,1561.4,1561.3,46.7296]
[1744791139614,8.70068659,1561.4,1561.3,46.7296]
[1744791139804,8.70068659,1561.4,1561.3,48.01068]
[1744791139805,10.47428659,1561.4,1561.3,48.01068]
[1744791141105,10.47428659,1561.4,1561.3,46.7296]
[1744791141514,6.2624,1561.4,1561.3,46.7296]
[1744791143016,4.9814,1561.4,1561.1,1.2026]
[1744791143317,1.28125,1561.1,1561.0,4.725]
[1744791143514,1.28125,1561.1,1561.0,6.00633]
[1744791143710,1.28125,1561.1,1561.0,46.80633]
[1744791144405,3.2078,1561.4,1561.0,45.525]
[1744791144618,1.28125,1561.2,1561.1,1.28122]
[1744791144811,4.48905,1561.2,1561.1,1.28122]
[1744791145009,4.48905,1561.2,1561.0,46.80627]
[1744791145010,1.28125,1561.1,1561.0,46.80627]
[1744791146029,1.28125,1561.1,1561.0,45.525]
[1744791146725,2.93815,1561.1,1561.0,45.525]
[1744791146919,2.93815,1561.1,1561.0,46.80633]
[1744791147223,4.489,1561.2,1561.1,1.28125]
[1744791147426,3.2078,1561.2,1561.1,1.28125]
[1744791147624,7.42930351,1561.5,1561.2,3.20282]
[1744791147817,1.28104,1561.4,1561.3,7.12492]
[1744791148217,8.71028351,1561.5,1561.4,1.281]
[1744791148419,1.281,1561.4,1561.3,7.12491]
[1744791148620,1.281,1561.4,1561.3,8.23841]
[1744791151122,1.281,1561.4,1561.3,9.84071]
[1744791154729,4.49838692,1561.5,1561.4,1.281]
[1744791155030,4.49838692,1561.5,1561.4,3.0269]
[1744791155730,0.00961692,1561.5,1561.4,3.0269]
[1744791158626,3.2078,1561.7,1561.6,1.28084]
[1744791158834,4.48855,1561.7,1561.6,4.686]
[1744791159029,4.48855,1561.7,1561.6,7.70474]
[1744791160625,3.2078,1561.7,1561.6,7.70474]
[1744791160825,4.48855,1561.7,1561.6,7.70474]
[1744791161634,3.2078,1561.7,1561.6,7.70474]
[1744791161928,3.2078,1561.7,1561.6,8.90944]
[1744791162231,3.2078,1561.7,1561.6,13.90944]
[1744791162931,4.48855,1561.7,1561.6,8.90944]
[1744791163133,3.2078,1561.7,1561.6,8.90944]
[1744791163838,4.48855,1561.7,1561.6,8.90944]
[1744791164441,3.2078,1561.7,1561.6,8.90944]
[1744791165235,4.48855,1561.7,1561.6,8.90944]
[1744791165537,4.48855,1561.7,1561.6,6.4229]
[1744791165936,4.48855,1561.7,1561.6,7.70374]
[1744791165937,6.23825,1561.7,1561.6,7.70374]
[1744791166536,6.23825,1561.7,1561.6,6.4229]
[1744791166839,6.23825,1561.7,1561.6,4.685]
[1744791167232,6.23825,1561.7,1561.6,5.96584]
[1744791167431,6.23825,1561.7,1561.6,6.2885]
[1744791167935,6.23825,1561.7,1561.6,7.56934]
[1744791168136,3.2078,1561.7,1561.6,7.56934]
[1744791168530,0.00961692,1561.8,1561.7,1.28075]
[1744791168735,0.00961692,1561.8,1561.7,5.14515]
[1744791171338,1.29028692,1561.8,1561.7,5.14515]
[1744791172537,4.49808692,1561.8,1561.7,5.14515]
[1744791173141,4.49808692,1561.8,1561.7,3.8644]
[1744791173341,6.10338692,1561.8,1561.7,3.8644]
[1744791173542,6.10338692,1561.8,1561.7,5.14515]
[1744791175942,6.10338692,1561.8,1561.7,3.8644]
[1744791176339,6.10338692,1561.8,1561.7,5.14515]
[1744791180245,6.10338692,1561.8,1561.6,5.96578]
[1744791180548,1.28084,1561.6,1561.5,0.00961692]
[1744791180854,4.48864,1561.6,1561.5,0.00961692]
[1744791181149,4.48864,1561.6,1561.5,1.77061692]
[1744791181450,1.28084,1561.6,1561.5,1.77061692]
[1744791181851,1.28084,1561.6,1561.5,3.05153692]
[1744791182251,1.28084,1561.6,1561.0,45.485]
[1744791182252,1.28119,1561.2,1561.0,45.485]
[1744791182548,3.2078,1561.4,1561.1,1.761]
[1744791182754,2.94593,1561.3,1561.2,1.28113]
[1744791183052,1.28108,1561.3,1561.2,1.761]
[1744791183354,1.28108,1561.3,1561.2,2.9524]
[1744791183952,1.28108,1561.3,1561.2,4.23351]
[1744791184647,4.48885,1561.4,1561.3,1.28108]
[1744791184851,4.48885,1561.4,1561.3,7.72678]
[1744791185053,4.48885,1561.4,1561.3,6.4457]
[1744791185556,4.48885,1561.4,1561.3,7.72678]
[1744791185850,4.48885,1561.4,1561.3,6.4457]
[1744791186053,11.81066647,1561.5,1561.4,1.281]
[1744791186244,11.81066647,1561.5,1561.4,3.0417]
[1744791187757,1.281,1561.4,1561.3,4.685]
[1744791188061,6.2476,1561.4,1561.3,4.685]
[1744791188661,6.2476,1561.4,1561.3,6.4091]
[1744791190354,6.2476,1561.4,1561.3,4.685]
[1744791190552,7.4443,1561.4,1561.3,4.685]
[1744791191257,1.28116,1561.2,1561.1,1.18961692]
[1744791191463,4.48896,1561.2,1561.1,0.00961692]
[1744791191649,9.48896,1561.2,1561.1,0.00961692]
[1744791192054,6.21196,1561.2,1561.1,0.00961692]
[1744791192860,11.21196,1561.2,1561.1,0.00961692]
[1744791193257,11.7235262,1561.2,1561.1,0.00961692]
[1744791193654,18.85841984,1561.2,1561.1,0.00961692]
[1744791194158,23.45941984,1561.2,1561.1,0.00961692]
[1744791194364,34.52016984,1561.2,1560.4,4.602]
[1744791194664,4.48954,1560.5,1560.4,6.3395]
[1744791194857,4.48954,1560.5,1560.4,48.42132]
[1744791195059,4.48954,1560.5,1560.4,47.1395]
[1744791195259,4.48954,1560.5,1560.4,40.8]
[1744791195460,4.48954,1560.5,1560.1,12.80375746]
[1744791195461,11.41217,1560.5,1560.1,12.80375746]
[1744791195663,4.48978,1560.2,1560.1,12.80375746]
[1744791195865,4.48978,1560.2,1560.1,12.81337438]
[1744791196059,20.02778,1560.2,1560.1,11.51036438]
[1744791196264,20.5144885,1560.2,1560.1,5.85637438]
[1744791196864,19.2325085,1560.2,1559.9,2.99934615]
[1744791197069,1.28231,1559.8,1559.7,18.15229308]
[1744791197264,1.28264,1559.4,1559.3,17.07857433]
[1744791197569,4.49044,1559.4,1559.3,17.07857433]
[1744791198368,9.49044,1559.4,1559.3,17.07857433]
[1744791198666,9.49044,1559.4,1559.3,16.88663518]
[1744791199369,10.47244,1559.4,1559.3,16.88663518]
[1744791199571,5.47244,1559.4,1559.3,16.88663518]
[1744791200266,10.07744,1559.4,1559.3,16.88663518]
[1744791200767,5.47244,1559.4,1559.3,16.88663518]
[1744791200972,0.00961692,1559.5,1559.4,1.28264]
[1744791201269,0.00961692,1559.5,1559.4,15.35114891]
[1744791201474,13.3312,1560.0,1559.5,15.35102891]
[1744791201662,4.22465644,1559.6,1559.5,15.35102891]
[1744791201867,4.22465644,1559.6,1559.5,6.8255088]
[1744791202070,4.22465644,1559.6,1559.5,25.89401771]
[1744791202473,4.99949752,1559.8,1559.7,1.2824]
[1744791202776,8.40952676,1560.0,1559.9,1.28223]
[1744791202969,6.51142676,1560.0,1559.9,4.49003]
[1744791203176,10.53279004,1560.2,1560.1,1.28207]
[1744791203365,10.53279004,1560.2,1560.1,46.68707]
[1744791203563,10.53279004,1560.2,1560.1,65.75557891]
[1744791204571,10.53279004,1560.2,1560.1,60.75557891]
[1744791204875,0.00961692,1560.3,1560.2,1.28198]
[1744791205074,1.29151692,1560.3,1560.2,15.35048891]
[1744791205273,1.29151692,1560.3,1560.2,14.06850891]
[1744791205274,0.00961692,1560.3,1560.2,14.06850891]
[1744791205474,0.00961692,1560.3,1560.2,15.35048891]
[1744791206277,1.29151692,1560.3,1560.2,14.06850891]
[1744791206676,1.28198,1560.2,1559.7,3.2078]
[1744791206887,1.28223,1559.9,1559.8,14.06850891]
[1744791207376,3.04402,1560.0,1559.8,56.15077891]
[1744791207574,3.04402,1560.0,1559.8,56.15075891]
[1744791207776,1.28223,1559.9,1559.8,56.15075891]
[1744791208078,1.28215,1560.0,1559.9,15.35070891]
[1744791208477,1.28215,1560.0,1559.9,14.06850891]
[1744791208677,4.48993,1560.1,1559.9,15.35073891]
[1744791208879,4.48993,1560.1,1560.0,14.06850891]
[1744791209182,1.28223,1559.9,1559.8,40.8]
[1744791209375,1.28221,1560.0,1559.9,14.06850891]
[1744791210172,1.28223,1559.9,1559.8,40.8]
[1744791210376,1.28223,1559.9,1559.8,54.86850891]
[1744791210582,1.28223,1559.9,1559.6,1.1467]
[1744791210583,1.2824,1559.7,1559.6,5.7517]
[1744791210974,4.4901,1559.9,1559.7,1.2824]
[1744791211181,1.28231,1559.8,1559.7,15.35090891]
[1744791211371,1.28231,1559.8,1559.7,14.06850891]
[1744791212482,1.28231,1559.8,1559.7,15.35090891]
[1744791212980,3.2078,1559.9,1559.7,20.35090891]
[1744791213183,3.2078,1559.9,1559.8,15.35081891]
[1744791213380,3.2078,1559.9,1559.8,1.28231]
[1744791213686,3.2078,1559.9,1559.8,15.35081891]
[1744791214682,1.28216,1560.0,1559.9,1.28223]
[1744791214879,1.28215,1560.0,1559.9,14.06850891]
[1744791215678,1.28215,1560.0,1559.9,15.35066891]
[1744791216179,4.4899,1560.1,1560.0,1.28215]
[1744791216981,4.49935692,1560.3,1560.2,14.06850891]
[1744791217888,1.28207,1560.1,1560.0,7.041]
[1744791218289,1.28207,1560.1,1560.0,21.10950891]
[1744791218590,1.28207,1560.1,1560.0,7.041]
[1744791218789,1.28207,1560.1,1560.0,21.10950891]
[1744791218983,8.2078,1560.1,1559.6,46.77041]
[1744791219290,1.2824,1559.7,1559.6,45.488]
[1744791219679,4.4902,1559.7,1559.6,18.75650891]
[1744791219878,1.2824,1559.7,1559.6,14.06850891]
[1744791220488,1.2824,1559.7,1559.6,15.76520891]
[1744791221385,1.28281,1559.2,1559.1,5.97086]
[1744791221578,1.28281,1559.2,1559.1,14.06850891]
[1744791222692,1.28281,1559.2,1559.1,15.76520891]
[1744791222892,1.28281,1559.2,1559.1,1.6967]
[1744791223094,8.04781,1559.2,1559.1,1.6967]
[1744791223290,8.04781,1559.2,1559.0,40.8]
[1744791223291,9.97204,1559.2,1558.6,3.2078]
[1744791223495,4.49102,1558.7,1558.6,15.67510891]
[1744791224201,4.49102,1558.7,1558.0,3.20948]
[1744791224202,11.41589,1558.7,1557.9,3.2078]
[1744791224395,1.28371,1558.1,1558.0,15.67510891]
[1744791224691,0.00961692,1558.2,1558.1,1.28371]
[1744791224897,0.00961692,1558.2,1558.1,23.24901891]
[1744791225195,0.00961692,1558.2,1558.1,15.35221891]
[1744791225486,0.00961692,1558.2,1558.1,18.56001891]
[1744791225693,0.00961692,1558.2,1558.1,15.35221891]
[1744791225891,5.00961692,1558.2,1558.0,40.8]
[1744791226093,1.28371,1558.1,1557.9,4.49165]
[1744791226294,1.28371,1558.1,1558.0,14.06850891]
[1744791226491,11.41717,1558.1,1557.6,3.2078]
[1744791226788,1.6753,1558.0,1557.7,14.06850891]
[1744791226987,3.2078,1558.1,1557.7,14.06850891]
[1744791227188,3.2078,1558.1,1557.7,1.284]
[1744791227387,1.2839,1557.9,1557.8,14.06850891]
[1744791227805,4.49157,1558.1,1557.9,1.28384]
[1744791227985,1.28379,1558.0,1557.9,14.06850891]
[1744791228185,3.2078,1558.1,1557.5,3.2078]
[1744791228391,4.49155,1558.1,1557.9,1.28386]
[1744791228684,4.49155,1558.1,1557.7,3.2078]
[1744791228685,1.2838,1558.0,1557.8,42.08389]
[1744791228890,1.28388,1557.9,1557.8,54.86850891]
[1744791229199,1.28383,1558.0,1557.9,14.06850891]
[1744791229396,4.49157,1558.1,1557.9,15.35236891]
[1744791229588,1.28371,1558.1,1558.0,14.06850891]
[1744791229795,1.28393,1557.9,1557.7,4.49182]
[1744791229994,1.28385,1558.0,1557.8,14.06850891]
[1744791230191,1.28385,1558.0,1557.8,56.15242891]
[1744791230390,1.28376,1558.1,1557.9,15.35238891]
[1744791230801,1.28379,1558.0,1557.9,18.76050891]
[1744791230993,11.42649692,1558.2,1557.5,3.2078]
[1744791231299,3.21741692,1558.2,1557.6,14.06850891]
[1744791231498,1.28378,1558.1,1557.9,3.2078]
[1744791231717,0.00961692,1558.2,1558.1,1.28371]
[1744791231896,0.00961692,1558.2,1558.1,4.49151]
[1744791232100,1.28333,1558.6,1558.4,1.28339]
[1744791232300,1.2833,1558.7,1558.5,15.35188891]
[1744791232601,1.2833,1558.6,1558.5,15.35188891]
[1744791232814,3.2078,1558.9,1558.6,14.06850891]
[1744791232988,3.2078,1558.9,1558.5,14.06850891]
[1744791233194,4.49102,1558.7,1558.6,0.00961692]
[1744791233697,9.49102,1558.7,1558.6,0.00961692]
[1744791235098,3.20835,1558.6,1558.1,4.692]
[1744791235288,1.28363,1558.2,1558.1,4.692]
[1744791235494,1.28363,1558.2,1558.1,18.76050891]
[1744791235788,1.28363,1558.2,1558.1,14.06850891]
[1744791236192,1.28363,1558.2,1558.1,15.35221891]
[1744791236400,1.28363,1558.2,1558.1,14.06850891]
[1744791237401,1.28359,1558.3,1558.1,15.35215891]
[1744791237594,1.28359,1558.3,1558.2,14.06850891]
[1744791238400,4.49139,1558.3,1558.2,14.06850891]
[1744791240301,1.28371,1558.1,1558.0,1.6812]
[1744791240602,1.28371,1558.1,1558.0,2.96499]
[1744791240803,1.28371,1558.1,1558.0,15.74970891]
[1744791240999,1.2837,1558.2,1558.0,17.03349891]
[1744791241241,5.936,1558.7,1558.2,4.49255]
[1744791241500,1.28324,1558.7,1558.4,17.27711891]
[1744791241803,3.2078,1558.6,1558.5,2.49912]
[1744791242003,1.28316,1558.8,1558.7,1.28317]
[1744791242197,1.28316,1558.8,1558.6,20.04473891]
[1744791242403,1.28316,1558.8,1558.7,1.28322]
[1744791242404,4.49096,1558.8,1558.7,1.28322]
[1744791242608,4.49096,1558.8,1558.7,15.35172891]
[1744791242808,3.2078,1558.8,1558.7,15.35172891]
[1744791243107,4.49094,1558.8,1558.7,15.35172891]
[1744791243409,3.2078,1558.8,1558.7,15.35172891]
[1744791243705,1.28314,1558.8,1558.7,14.06850891]
[1744791243911,8.2078,1558.8,1558.3,4.693]
[1744791244201,1.28352,1558.4,1558.2,2.45707]
[1744791244509,4.49124,1558.5,1558.4,1.28347]
[1744791244707,4.49118,1558.5,1558.4,1.28347]
[1744791244905,4.49118,1558.5,1558.4,15.84630891]
[1744791245309,3.2078,1558.5,1558.4,17.12977891]
[1744791245504,4.49118,1558.5,1558.4,15.84630891]
[1744791245807,3.2078,1558.5,1558.4,26.82277891]
[1744791246005,1.29273692,1558.9,1558.4,28.74796891]
[1744791246205,0.00961692,1558.9,1558.8,1.28314]
[1744791246401,1.29266692,1558.9,1558.8,1.28314]
[1744791246610,1.29266692,1558.9,1558.8,15.84630891]
[1744791247108,1.29266692,1558.9,1558.8,17.12944891]
[1744791247305,1.29266692,1558.9,1558.8,15.84630891]
[1744791247614,0.00961692,1558.9,1558.8,17.12944891]
[1744791247902,0.00961692,1558.9,1558.8,18.32074891]
[1744791248102,1.28342,1558.5,1558.3,93.828]
[1744791248299,3.2078,1558.7,1558.4,14.06850891]
[1744791248505,6.42505692,1558.9,1558.5,1.28334]
[1744791248722,1.2833,1558.6,1558.5,18.92850891]
[1744791248909,1.2833,1558.6,1558.5,4.86]
[1744791249110,1.2833,1558.6,1558.5,14.06850891]
[1744791249309,1.28347,1558.4,1558.3,6.0513]
[1744791249503,4.49127,1558.4,1558.3,6.0513]
[1744791249698,1.28345,1558.5,1558.3,20.11980891]
[1744791249903,3.2078,1558.8,1558.5,1.28338]
[1744791250108,1.28328,1558.7,1558.5,1.28338]
[1744791250303,1.28322,1558.7,1558.6,14.06850891]
[1744791250504,1.2833,1558.6,1558.5,15.83780891]
[1744791250704,4.4911,1558.6,1558.5,17.12118891]
[1744791250909,4.4911,1558.6,1558.5,15.83780891]
[1744791251210,4.4911,1558.6,1558.5,17.12118891]
[1744791251512,3.2078,1558.6,1558.5,22.12118891]
[1744791252413,1.28316,1558.8,1558.7,1.28322]
[1744791252932,1.28316,1558.8,1558.7,14.06850891]
[1744791253113,1.28316,1558.8,1558.7,15.84210891]
[1744791254310,1.28316,1558.8,1558.7,17.12532891]
[1744791254605,1.28314,1558.8,1558.7,18.35138891]
[1744791254809,1.28314,1558.8,1558.7,18.35142891]
[1744791255312,3.21741692,1558.9,1558.8,1.28314]
[1744791255313,0.00961692,1558.9,1558.8,1.28314]
[1744791255511,1.28279,1559.3,1559.2,1.28276]
[1744791255707,1.28271,1559.4,1559.3,1.28269]
[1744791255910,3.20682,1559.3,1558.9,6.14298]
[1744791256107,4.49077,1559.0,1558.9,6.14298]
[1744791256308,4.49077,1559.0,1558.9,46.94298]
[1744791256511,1.28297,1559.0,1558.9,59.72850891]
[1744791256905,1.28297,1559.0,1558.9,61.38030891]
[1744791257104,1.28297,1559.0,1558.9,62.66335891]
[1744791257301,1.28297,1559.0,1558.9,61.38030891]
[1744791257514,1.28297,1559.0,1558.9,62.66335891]
[1744791257715,1.29256692,1559.1,1559.0,1.28297]
[1744791257919,1.29256692,1559.1,1559.0,17.00327891]
[1744791258210,0.00961692,1559.1,1559.0,17.00327891]
[1744791258416,1.29250692,1559.1,1559.0,17.00327891]
[1744791258819,0.00961692,1559.1,1559.0,17.00327891]
[1744791259016,0.00961692,1559.1,1559.0,18.15337891]
[1744791259217,1.29250692,1559.1,1559.0,18.15337891]
[1744791259419,0.00961692,1559.1,1559.0,18.15337891]
[1744791260012,0.00961692,1559.1,1559.0,23.15337891]
[1744791261215,1.28267,1559.4,1559.3,1.28272]
[1744791261414,1.28267,1559.4,1559.3,6.14172]
[1744791261613,1.28267,1559.4,1559.3,61.01022891]
[1744791261809,1.28267,1559.4,1559.3,59.72750891]
[1744791262018,6.28267,1559.4,1559.3,40.8]
[1744791262220,1.28281,1559.2,1559.1,4.859]
[1744791262422,1.28305,1558.9,1558.8,0.00961692]
[1744791262631,4.49085,1558.9,1558.8,0.00961692]
[1744791262920,9.49085,1558.9,1558.8,0.00961692]